fUST/lending_fUST_20250604
["ID","MTS","AMOUNT","RATE_DAILY","PERIOD"]
[364205901,1749041439336,-440.0,0.00016986,2]
[364205903,1749041439346,-471.06,0.00016986,2]
[364205905,1749041439355,-6389.49,0.00016986,2]
[364205907,1749041439364,-440.0,0.00016986,2]
[364205909,1749041439373,-440.0,0.00016986,2]
[364205912,1749041439382,-1246.34,0.00016986,2]
[364205915,1749041439392,-2046.27,0.00016986,2]
[364205918,1749041439402,-180.47712024,0.00016986,2]
[364205921,1749041439412,-440.0,0.00016986,2]
[364205924,1749041439421,-440.0,0.00016986,2]
[364205927,1749041439431,-440.0,0.00016986,2]
[364205930,1749041439440,-2407.99,0.00016986,2]
[364205932,1749041439449,-410.0,0.00016986,2]
[364205934,1749041439459,-1786.1,0.00016991,2]
[364205936,1749041439469,-532.96,0.00016991,2]
[364205938,1749041439478,-440.0,0.00016991,2]
[364205940,1749041439488,-440.0,0.00016991,2]
[364205942,1749041439498,-580.18,0.00016991,2]
[364205944,1749041439510,-5031.71,0.00016991,2]
[364205946,1749041439520,-534.64,0.00016991,2]
[364205948,1749041439529,-440.0,0.00016991,2]
[364205950,1749041439539,-588.49,0.00016991,2]
[364205952,1749041439549,-474.78427691,0.00016991,2]
[364205954,1749041439560,-440.0,0.00016991,2]
[364205956,1749041439575,-420.0,0.00016993,2]
[364205959,1749041439586,-334.06083632,0.00016993,2]
[364205961,1749041439596,-430.0,0.00016993,2]
[364205963,1749041439605,-430.0,0.00016993,2]
[364205965,1749041439616,-430.0,0.00016993,2]
[364205967,1749041439627,-430.0,0.00016993,2]
[364205969,1749041439637,-430.0,0.00016993,2]
[364205971,1749041439648,-430.0,0.00016993,2]
[364205973,1749041439658,-430.0,0.00016993,2]
[364205975,1749041439671,-430.0,0.00016993,2]
[364205977,1749041439680,-440.0,0.00016994,2]
[364205979,1749041439690,-430.0,0.00016994,2]
[364205981,1749041439700,-519.66,0.00017255,3]
[364205983,1749041439710,-440.0,0.0001726,2]
[364205985,1749041439720,-440.0,0.0001726,2]
[364205987,1749041439729,-506.5,0.0001726,2]
[364205989,1749041439739,-440.0,0.0001726,2]
[364205991,1749041439750,-440.0,0.0001726,2]
[364205993,1749041439759,-440.0,0.0001726,2]
[364205996,1749041439769,-440.0,0.0001726,2]
[364205997,1749041439778,-1252.63,0.0001726,2]
[364206013,1749041439902,-440.0,0.0001726,2]
[364206015,1749041439913,-1161.32,0.0001726,2]
[364206017,1749041439922,-440.0,0.0001726,2]
[364206019,1749041439931,-390.0,0.0001726,2]
[364206021,1749041439939,-509.95,0.0001726,2]
[364206023,1749041439948,-2227.24,0.0001726,2]
[364206025,1749041439956,-1139.31,0.0001726,2]
[364206027,1749041439964,-440.0,0.0001726,2]
[364206029,1749041439973,-440.0,0.0001726,2]
[364206031,1749041439982,-440.0,0.0001726,2]
[364206033,1749041439992,-440.0,0.0001726,2]
[364206035,1749041440001,-529.26,0.0001726,2]
[364206037,1749041440011,-440.0,0.0001726,2]
[364206039,1749041440020,-440.0,0.0001726,2]
[364206041,1749041440030,-440.0,0.0001726,2]
[364206043,1749041440039,-120.28689967,0.0001726,2]
[364206045,1749041440054,-350.77310033,0.0001726,2]
[364206047,1749041440063,-470.36756347,0.0001726,2]
[364206049,1749041440074,-5919.12243653,0.0001726,2]
[364206051,1749041440084,-390.08513487,0.0001726,2]
[364206053,1749041440095,-49.91486513,0.0001726,2]
[364206056,1749041440105,-440.0,0.0001726,2]
[364206058,1749041440114,-1246.34,0.0001726,2]
[364206060,1749041440124,-2046.27,0.0001726,2]
[364206062,1749041440134,-440.0,0.0001726,2]
[364206064,1749041440143,-440.0,0.0001726,2]
[364206066,1749041440154,-440.0,0.0001726,2]
[364206068,1749041440165,-2407.99,0.0001726,2]
[364206070,1749041440175,-1786.1,0.00017265,2]
[364206072,1749041440184,-532.96,0.00017265,2]
[364206074,1749041440194,-440.0,0.00017265,2]
[364206076,1749041440204,-440.0,0.00017265,2]
[364206078,1749041440214,-580.18,0.00017265,2]
[364206080,1749041440223,-5031.71,0.00017265,2]
[364206082,1749041440233,-534.64,0.00017265,2]
[364206084,1749041440244,-430.0,0.00017265,2]
[364206086,1749041440253,-588.49,0.00017265,2]
[364206088,1749041440262,-440.0,0.00017265,2]
[364206090,1749041440272,-892.75,0.00017267,2]
[364206092,1749041440281,-2335.72,0.00017267,2]
[364206094,1749041440290,-529.09,0.00017267,2]
[364206096,1749041440299,-430.0,0.00017267,2]
[364206098,1749041440309,-420.0,0.00017268,2]
[364206100,1749041440318,-500.0,0.00017359,2]
[364206102,1749041440328,-203.86515256,0.00017445,2]
[364206104,1749041440337,-440.0,0.00017534,2]
[364206106,1749041440347,-440.0,0.00017534,2]
[364206108,1749041440356,-506.5,0.00017534,2]
[364206110,1749041440366,-440.0,0.00017534,2]
[364206112,1749041440375,-390.0,0.00017534,2]
[364206114,1749041440385,-440.0,0.00017534,2]
[364206116,1749041440395,-265.1691698,0.00017534,2]
[364206118,1749041440405,-1252.63,0.00017534,2]
[364206120,1749041440415,-440.0,0.00017534,2]
[364206122,1749041440425,-1161.32,0.00017534,2]
[364206124,1749041440435,-440.0,0.00017534,2]
[364206126,1749041440445,-509.95,0.00017534,2]
[364206128,1749041440455,-2227.24,0.00017534,2]
[364206130,1749041440464,-1139.31,0.00017534,2]
[364206132,1749041440473,-440.0,0.00017534,2]
[364206134,1749041440483,-440.0,0.00017534,2]
[364206136,1749041440494,-440.0,0.00017534,2]
[364206138,1749041440503,-440.0,0.00017534,2]
[364206140,1749041440514,-529.26,0.00017534,2]
[364206142,1749041440523,-440.0,0.00017534,2]
[364206144,1749041440532,-440.0,0.00017534,2]
[364206146,1749041440542,-390.0,0.00017534,2]
[364206148,1749041440552,-471.06,0.00017534,2]
[364206151,1749041440564,-6389.49,0.00017534,2]
[364206153,1749041440575,-440.0,0.00017534,2]
[364206155,1749041440584,-440.0,0.00017534,2]
[364206157,1749041440594,-1246.34,0.00017534,2]
[364206159,1749041440604,-2046.27,0.00017534,2]
[364206161,1749041440615,-440.0,0.00017534,2]
[364206163,1749041440624,-440.0,0.00017534,2]
[364206165,1749041440633,-440.0,0.00017534,2]
[364206167,1749041440643,-2407.99,0.00017534,2]
[364206169,1749041440653,-1786.1,0.00017539,2]
[364206171,1749041440665,-532.96,0.00017539,2]
[364206173,1749041440674,-440.0,0.00017539,2]
[364206175,1749041440684,-440.0,0.00017539,2]
[364206177,1749041440695,-580.18,0.00017539,2]
[364206179,1749041440704,-5031.71,0.00017539,2]
[364206181,1749041440715,-534.64,0.00017539,2]
[364206183,1749041440725,-588.49,0.00017539,2]
[364206185,1749041440736,-440.0,0.00017539,2]
[364206187,1749041440748,-892.75,0.00017541,2]
[364206189,1749041440759,-2335.72,0.00017541,2]
[364206191,1749041440771,-529.09,0.00017541,2]
[364206193,1749041440781,-500.57070977,0.00017588,2]
[364206195,1749041440791,-501.53934721,0.00017588,2]
[364206197,1749041440801,-503.62633479,0.00017588,2]
[364206199,1749041440811,-500.0,0.00017588,2]
[364206201,1749041440821,-179.16190936,0.00017588,2]
[364206203,1749041440830,-549.40032849,0.00017588,2]
[364206205,1749041440841,-500.0,0.00017588,2]
[364206207,1749041440850,-501.65796005,0.00017588,2]
[364206209,1749041440860,-500.0,0.00017588,2]
[364206211,1749041440870,-4401.51327344,0.000176,2]
[364206213,1749041440879,-4401.51327333,0.000176,2]
[364206215,1749041440888,-4401.51327333,0.000176,2]
[364206217,1749041440898,-500.93615885,0.00017603,2]
[364206219,1749041440907,-1336.74747326,0.00017607,2]
[364206221,1749041440921,-500.72993794,0.00017609,2]
[364206223,1749041440930,-500.0,0.00017609,2]
[364206225,1749041440939,-300.0,0.00017664,2]
[364206227,1749041440949,-500.0,0.00017719,2]
[364206229,1749041440958,-500.0,0.00017719,2]
[364206231,1749041440968,-4401.51327333,0.00017728,2]
[364206233,1749041440978,-1200.0,0.00017753,2]
[364206236,1749041440988,-440.0,0.00017808,2]
[364206237,1749041440998,-440.0,0.00017808,2]
[364206239,1749041441007,-506.5,0.00017808,2]
[364206242,1749041441017,-440.0,0.00017808,2]
[364206243,1749041441027,-440.0,0.00017808,2]
[364206246,1749041441038,-1252.63,0.00017808,2]
[364206248,1749041441048,-440.0,0.00017808,2]
[364206250,1749041441058,-1161.32,0.00017808,2]
[364206252,1749041441067,-440.0,0.00017808,2]
[364206254,1749041441077,-509.95,0.00017808,2]
[364206256,1749041441086,-2227.24,0.00017808,2]
[364206258,1749041441095,-1139.31,0.00017808,2]
[364206260,1749041441105,-440.0,0.00017808,2]
[364206262,1749041441115,-440.0,0.00017808,2]
[364206264,1749041441124,-440.0,0.00017808,2]
[364206266,1749041441134,-440.0,0.00017808,2]
[364206268,1749041441143,-529.26,0.00017808,2]
[364206270,1749041441153,-279.4512484,0.00017808,2]
[364206272,1749041441163,-440.0,0.00017808,2]
[364206274,1749041441173,-471.06,0.00017808,2]
[364206276,1749041441183,-6389.49,0.00017808,2]
[364206278,1749041441192,-440.0,0.00017808,2]
[364206280,1749041441202,-440.0,0.00017808,2]
[364206282,1749041441211,-1246.34,0.00017808,2]
[364206284,1749041441221,-2046.27,0.00017808,2]
[364206286,1749041441230,-440.0,0.00017808,2]
[364206288,1749041441240,-440.0,0.00017808,2]
[364206290,1749041441250,-2407.99,0.00017808,2]
[364206292,1749041441259,-1786.1,0.00017813,2]
[364206294,1749041441269,-532.96,0.00017813,2]
[364206296,1749041441278,-440.0,0.00017813,2]
[364206298,1749041441287,-440.0,0.00017813,2]
[364206300,1749041441296,-580.18,0.00017813,2]
[364206302,1749041441306,-5031.71,0.00017813,2]
[364206304,1749041441315,-534.64,0.00017813,2]
[364206306,1749041441325,-588.49,0.00017813,2]
[364206308,1749041441334,-440.0,0.00017813,2]
[364206310,1749041441344,-892.75,0.00017815,2]
[364206312,1749041441354,-2335.72,0.00017815,2]
[364206314,1749041441363,-529.09,0.00017815,2]
[364206316,1749041441373,-550.41727479,0.00017816,2]
[364206318,1749041441383,-532.98731685,0.00017816,2]
[364206320,1749041441393,-496.11518222,0.00017816,2]
[364206322,1749041441403,-500.0,0.00017816,2]
[364206324,1749041441415,-151.0,0.00017817,2]
[364206326,1749041441425,-500.0,0.00017826,2]
[364206328,1749041441435,-500.0,0.00017826,2]
[364206330,1749041441445,-4401.51327333,0.00018003,2]
[364206332,1749041441455,-440.0,0.00018082,2]
[364206334,1749041441464,-440.0,0.00018082,2]
[364206336,1749041441474,-506.5,0.00018082,2]
[364206338,1749041441484,-440.0,0.00018082,2]
[364206340,1749041441493,-196.0917678,0.00018082,2]
[364206342,1749041441503,-1252.63,0.00018082,2]
[364206344,1749041441512,-440.0,0.00018082,2]
[364206346,1749041441522,-1161.32,0.00018082,2]
[364206348,1749041441532,-440.0,0.00018082,2]
[364206350,1749041441543,-509.95,0.00018082,2]
[364206352,1749041441554,-2227.24,0.00018082,2]
[364206354,1749041441565,-1139.31,0.00018082,2]
[364206356,1749041441576,-370.0,0.00018082,2]
[364206358,1749041441586,-440.0,0.00018082,2]
[364206360,1749041441596,-440.0,0.00018082,2]
[364206362,1749041441606,-440.0,0.00018082,2]
[364206365,1749041441618,-529.26,0.00018082,2]
[364206367,1749041441628,-440.0,0.00018082,2]
[364206369,1749041441637,-471.06,0.00018082,2]
[364206370,1749041441648,-6389.49,0.00018082,2]
[364206372,1749041441658,-281.30395859,0.00018082,2]
[364206374,1749041441669,-440.0,0.00018082,2]
[364206376,1749041441679,-1246.34,0.00018082,2]
[364206378,1749041441689,-2046.27,0.00018082,2]
[364206380,1749041441698,-440.0,0.00018082,2]
[364206382,1749041441708,-440.0,0.00018082,2]
[364206384,1749041441718,-2407.99,0.00018082,2]
[364206386,1749041441728,-1786.1,0.00018087,2]
[364206388,1749041441738,-532.96,0.00018087,2]
[364206389,1749041441747,-440.0,0.00018087,2]
[364206390,1749041441756,-440.0,0.00018087,2]
[364206391,1749041441765,-580.18,0.00018087,2]
[364206392,1749041441775,-5031.71,0.00018087,2]
[364206393,1749041441784,-534.64,0.00018087,2]
[364206394,1749041441793,-588.49,0.00018087,2]
[364206395,1749041441802,-440.0,0.00018087,2]
[364206396,1749041441812,-892.75,0.00018089,2]
[364206397,1749041441821,-2335.72,0.00018089,2]
[364206398,1749041441830,-529.09,0.00018089,2]
[364206399,1749041441839,-1000.0,0.00018136,2]
[364206400,1749041441848,-4401.51327333,0.00018279,2]
[364206401,1749041441857,-615.16,0.00018346,3]
[364206402,1749041441867,-519.66,0.00018351,3]
[364206403,1749041441876,-1168.78,0.00018351,3]
[364206404,1749041441885,-584.4,0.00018351,3]
[364206405,1749041441894,-360.0,0.00018356,2]
[364206406,1749041441903,-440.0,0.00018356,2]
[364206407,1749041441913,-506.5,0.00018356,2]
[364206408,1749041441922,-440.0,0.00018356,2]
[364206409,1749041441931,-1252.63,0.00018356,2]
[364206410,1749041441940,-440.0,0.00018356,2]
[364206411,1749041441949,-1161.32,0.00018356,2]
[364206412,1749041441959,-440.0,0.00018356,2]
[364206413,1749041441969,-509.95,0.00018356,2]
[364206414,1749041441978,-2227.24,0.00018356,2]
[364206415,1749041441988,-1139.31,0.00018356,2]
[364206417,1749041441998,-440.0,0.00018356,2]
[364206419,1749041442008,-440.0,0.00018356,2]
[364206421,1749041442018,-440.0,0.00018356,2]
[364206423,1749041442027,-529.26,0.00018356,2]
[364206425,1749041442036,-440.0,0.00018356,2]
[364206427,1749041442046,-471.06,0.00018356,2]
[364206429,1749041442056,-6389.49,0.00018356,2]
[364206431,1749041442065,-440.0,0.00018356,2]
[364206433,1749041442075,-1246.34,0.00018356,2]
[364206435,1749041442084,-2046.27,0.00018356,2]
[364206437,1749041442094,-440.0,0.00018356,2]
[364206439,1749041442103,-223.06623274,0.00018356,2]
[364206441,1749041442113,-2407.99,0.00018356,2]
[364206443,1749041442122,-500.0,0.00018359,2]
[364206445,1749041442132,-500.0,0.00018359,2]
[364206447,1749041442143,-500.0,0.00018359,2]
[364206449,1749041442152,-500.0,0.00018359,2]
[364206451,1749041442164,-500.0,0.00018359,2]
[364206453,1749041442173,-500.0,0.00018359,2]
[364206455,1749041442183,-500.0,0.00018359,2]
[364206457,1749041442193,-500.0,0.00018359,2]
[364206459,1749041442202,-500.0,0.00018359,2]
[364206462,1749041442212,-500.0,0.00018359,2]
[364206465,1749041442222,-500.0,0.00018359,2]
[364206467,1749041442231,-500.0,0.00018359,2]
[364206469,1749041442241,-500.0,0.00018359,2]
[364206471,1749041442253,-500.0,0.00018359,2]
[364206473,1749041442262,-500.0,0.00018359,2]
[364206475,1749041442272,-500.0,0.00018359,2]
[364206477,1749041442281,-500.0,0.00018359,2]
[364206479,1749041442290,-500.0,0.00018359,2]
[364206482,1749041442300,-500.0,0.00018359,2]
[364206484,1749041442310,-163.65075795,0.00018359,2]
[364206487,1749041442319,-500.0,0.00018359,2]
[364206490,1749041442329,-500.0,0.00018359,2]
[364206492,1749041442338,-500.0,0.00018359,2]
[364206494,1749041442348,-500.0,0.00018359,2]
[364206496,1749041442357,-500.0,0.00018359,2]
[364206498,1749041442367,-1786.1,0.00018361,2]
[364206501,1749041442376,-532.96,0.00018361,2]
[364206503,1749041442386,-380.0,0.00018361,2]
[364206507,1749041442396,-440.0,0.00018361,2]
[364206510,1749041442406,-580.18,0.00018361,2]
[364206513,1749041442418,-5031.71,0.00018361,2]
[364206516,1749041442427,-534.64,0.00018361,2]
[364206520,1749041442436,-588.49,0.00018361,2]
[364206524,1749041442446,-440.0,0.00018361,2]
[364206526,1749041442456,-892.75,0.00018363,2]
[364206528,1749041442466,-2335.72,0.00018363,2]
[364206530,1749041442477,-529.09,0.00018363,2]
[364206532,1749041442486,-1000.0,0.00018364,2]
[364206534,1749041442496,-151.0,0.000185,2]
[364206536,1749041442505,-203.86515256,0.00018552,2]
[364206539,1749041442515,-4401.51327333,0.00018555,2]
[364206541,1749041442525,-1039.32,0.00018625,3]
[364206543,1749041442535,-440.0,0.0001863,2]
[364206545,1749041442545,-506.5,0.0001863,2]
[364206547,1749041442555,-440.0,0.0001863,2]
[364206549,1749041442567,-1252.63,0.0001863,2]
[364206561,1749041442677,-440.0,0.0001863,2]
[364206563,1749041442688,-1161.32,0.0001863,2]
[364206565,1749041442699,-440.0,0.0001863,2]
[364206567,1749041442710,-509.95,0.0001863,2]
[364206569,1749041442721,-2227.24,0.0001863,2]
[364206571,1749041442731,-1139.31,0.0001863,2]
[364206573,1749041442740,-440.0,0.0001863,2]
[364206575,1749041442750,-440.0,0.0001863,2]
[364206577,1749041442761,-440.0,0.0001863,2]
[364206579,1749041442770,-529.26,0.0001863,2]
[364206581,1749041442780,-440.0,0.0001863,2]
[364206583,1749041442790,-471.06,0.0001863,2]
[364206585,1749041442800,-6389.49,0.0001863,2]
[364206587,1749041442810,-440.0,0.0001863,2]
[364206589,1749041442820,-1246.34,0.0001863,2]
[364206591,1749041442830,-2046.27,0.0001863,2]
[364206593,1749041442840,-440.0,0.0001863,2]
[364206595,1749041442850,-2407.99,0.0001863,2]
[364206598,1749041442860,-1786.1,0.00018635,2]
[364206600,1749041442870,-532.96,0.00018635,2]
[364206602,1749041442879,-440.0,0.00018635,2]
[364206604,1749041442888,-580.18,0.00018635,2]
[364206606,1749041442898,-5031.71,0.00018635,2]
[364206608,1749041442907,-534.64,0.00018635,2]
[364206609,1749041442918,-588.49,0.00018635,2]
[364206612,1749041442927,-360.77169749,0.00018635,2]
[364206614,1749041442938,-892.75,0.00018637,2]
[364206616,1749041442947,-2335.72,0.00018637,2]
[364206618,1749041442957,-529.09,0.00018637,2]
[364206620,1749041442966,-1044.54239209,0.00018684,2]
[364206622,1749041442976,-155.21130184,0.00018696,2]
[364206623,1749041442985,-4401.51327333,0.00018831,2]
[364206625,1749041442994,-440.0,0.00018904,2]
[364206627,1749041443004,-506.5,0.00018904,2]
[364206629,1749041443013,-440.0,0.00018904,2]
[364206631,1749041443022,-430.0,0.00018904,2]
[364206633,1749041443031,-1252.63,0.00018904,2]
[364206635,1749041443041,-1161.32,0.00018904,2]
[364206637,1749041443051,-440.0,0.00018904,2]
[364206639,1749041443061,-509.95,0.00018904,2]
[364206641,1749041443071,-2227.24,0.00018904,2]
[364206643,1749041443081,-1139.31,0.00018904,2]
[364206645,1749041443091,-440.0,0.00018904,2]
[364206647,1749041443101,-440.0,0.00018904,2]
[364206649,1749041443110,-440.0,0.00018904,2]
[364206651,1749041443120,-529.26,0.00018904,2]
[364206653,1749041443130,-561.124402,0.00018904,2]
[364206655,1749041443139,-471.06,0.00018904,2]
[364206657,1749041443149,-6389.49,0.00018904,2]
[364206659,1749041443159,-440.0,0.00018904,2]
[364206661,1749041443170,-1246.34,0.00018904,2]
[364206663,1749041443179,-2046.27,0.00018904,2]
[364206665,1749041443189,-440.0,0.00018904,2]
[364206667,1749041443198,-2407.99,0.00018904,2]
[364206669,1749041443208,-1786.1,0.00018909,2]
[364206671,1749041443217,-532.96,0.00018909,2]
[364206673,1749041443226,-440.0,0.00018909,2]
[364206675,1749041443236,-580.18,0.00018909,2]
[364206677,1749041443245,-5031.71,0.00018909,2]
[364206679,1749041443254,-534.64,0.00018909,2]
[364206681,1749041443264,-588.49,0.00018909,2]
[364206683,1749041443274,-892.75,0.00018911,2]
[364206685,1749041443284,-2335.72,0.00018911,2]
[364206687,1749041443293,-529.09,0.00018911,2]
[364206689,1749041443302,-1500.0,0.00018912,2]
[364206691,1749041443312,-151.0,0.00019,2]
[364206693,1749041443321,-608.80686757,0.00019031,2]
[364206695,1749041443330,-4401.51327333,0.00019107,2]
[364206697,1749041443340,-440.0,0.00019178,2]
[364206699,1749041443349,-506.5,0.00019178,2]
[364206701,1749041443358,-440.0,0.00019178,2]
[364206703,1749041443368,-1252.63,0.00019178,2]
[364206705,1749041443378,-1161.32,0.00019178,2]
[364206707,1749041443388,-440.0,0.00019178,2]
[364206709,1749041443398,-509.95,0.00019178,2]
[364206711,1749041443407,-2227.24,0.00019178,2]
[364206713,1749041443417,-1139.31,0.00019178,2]
[364206715,1749041443427,-440.0,0.00019178,2]
[364206717,1749041443436,-440.0,0.00019178,2]
[364206719,1749041443445,-440.0,0.00019178,2]
[364206721,1749041443455,-529.26,0.00019178,2]
[364206723,1749041443464,-471.06,0.00019178,2]
[364206725,1749041443474,-6389.49,0.00019178,2]
[364206727,1749041443483,-440.0,0.00019178,2]
[364206729,1749041443493,-1246.34,0.00019178,2]
[364206731,1749041443502,-2046.27,0.00019178,2]
[364206733,1749041443512,-205.56016783,0.00019178,2]
[364206735,1749041443521,-2407.99,0.00019178,2]
[364206737,1749041443531,-158.431827,0.00019178,2]
[364206739,1749041443541,-58026.5270699,0.00019178,2]
[364206741,1749041443551,-1786.1,0.00019183,2]
[364206743,1749041443562,-532.96,0.00019183,2]
[364206745,1749041443576,-440.0,0.00019183,2]
[364206747,1749041443586,-580.18,0.00019183,2]
[364206749,1749041443595,-5031.71,0.00019183,2]
[364206751,1749041443606,-534.64,0.00019183,2]
[364206753,1749041443615,-588.49,0.00019183,2]
[364206755,1749041443626,-892.75,0.00019185,2]
[364206757,1749041443635,-2335.72,0.00019185,2]
[364206759,1749041443646,-529.09,0.00019185,2]
[364206761,1749041443656,-160.0,0.00019283,2]
[364206763,1749041443667,-160.0,0.00019283,2]
[364206765,1749041443677,-229.45591648,0.00019284,2]
[364206767,1749041443687,-160.0,0.00019284,2]
[364206769,1749041443696,-423.69433488,0.00019284,2]
[364206771,1749041443706,-160.0,0.00019284,2]
[364206773,1749041443715,-212.90465545,0.00019284,2]
[364206775,1749041443725,-160.0,0.00019284,2]
[364206777,1749041443734,-842.5625,0.00019284,2]
[364206779,1749041443744,-3934.33964915,0.00019284,2]
[364206781,1749041443754,-160.0,0.00019284,2]
[364206783,1749041443763,-314.98208564,0.00019284,2]
[364206785,1749041443773,-4401.51327333,0.00019383,2]
[364206787,1749041443783,-492.09023752,0.00019449,2]
[364206789,1749041443793,-440.0,0.00019452,2]
[364206791,1749041443802,-506.5,0.00019452,2]
[364206793,1749041443812,-440.0,0.00019452,2]
[364206795,1749041443822,-1252.63,0.00019452,2]
[364206797,1749041443831,-1161.32,0.00019452,2]
[364206799,1749041443841,-392.02478216,0.00019452,2]
[364206801,1749041443851,-509.95,0.00019452,2]
[364206803,1749041443860,-2227.24,0.00019452,2]
[364206805,1749041443870,-1139.31,0.00019452,2]
[364206807,1749041443880,-432.445598,0.00019452,2]
[364206809,1749041443890,-440.0,0.00019452,2]
[364206811,1749041443900,-440.0,0.00019452,2]
[364206813,1749041443910,-529.26,0.00019452,2]
[364206815,1749041443921,-471.06,0.00019452,2]
[364206817,1749041443930,-6389.49,0.00019452,2]
[364206819,1749041443939,-440.0,0.00019452,2]
[364206821,1749041443950,-1246.34,0.00019452,2]
[364206823,1749041443959,-2046.27,0.00019452,2]
[364206825,1749041443968,-2407.99,0.00019452,2]
[364206827,1749041443978,-1786.1,0.00019457,2]
[364206829,1749041443987,-532.96,0.00019457,2]
[364206831,1749041443996,-440.0,0.00019457,2]
[364206833,1749041444006,-580.18,0.00019457,2]
[364206835,1749041444015,-5031.71,0.00019457,2]
[364206837,1749041444025,-534.64,0.00019457,2]
[364206839,1749041444034,-588.49,0.00019457,2]
[364206841,1749041444045,-892.75,0.00019459,2]
[364206843,1749041444054,-2335.72,0.00019459,2]
[364206845,1749041444063,-529.09,0.00019459,2]
[364206847,1749041444072,-2000.0,0.0001946,2]
[364206849,1749041444083,-151.0,0.000195,2]
[364206851,1749041444092,-500.0,0.0001959,2]
[364206853,1749041444101,-4401.51327333,0.00019659,2]
[364206855,1749041444110,-203.86515256,0.00019659,2]
[364206857,1749041444119,-350.56093057,0.00019716,2]
[364206859,1749041444128,-440.0,0.00019726,2]
[364206861,1749041444137,-506.5,0.00019726,2]
[364206863,1749041444147,-440.0,0.00019726,2]
[364206865,1749041444156,-1252.63,0.00019726,2]
[364206867,1749041444166,-1161.32,0.00019726,2]
[364206869,1749041444176,-509.95,0.00019726,2]
[364206871,1749041444185,-2227.24,0.00019726,2]
[364206873,1749041444195,-1139.31,0.00019726,2]
[364206888,1749041444413,-280.0,0.00019726,2]
[364206890,1749041444423,-454.66,0.00019726,2]
[364206892,1749041444433,-529.26,0.00019726,2]
[364206894,1749041444443,-471.06,0.00019726,2]
[364206896,1749041444452,-6389.49,0.00019726,2]
[364206898,1749041444461,-440.0,0.00019726,2]
[364206900,1749041444471,-1246.34,0.00019726,2]
[364206902,1749041444480,-2046.27,0.00019726,2]
[364206904,1749041444490,-2407.99,0.00019726,2]
[364206906,1749041444499,-208.0,0.00019726,3]
[364206908,1749041444509,-1786.1,0.00019731,2]
[364206910,1749041444519,-532.96,0.00019731,2]
[364206912,1749041444528,-440.0,0.00019731,2]
[364206914,1749041444537,-580.18,0.00019731,2]
[364206916,1749041444548,-5031.71,0.00019731,2]
[364206918,1749041444558,-534.64,0.00019731,2]
[364206920,1749041444569,-588.49,0.00019731,2]
[364206922,1749041444579,-892.75,0.00019733,2]
[364206924,1749041444589,-2335.72,0.00019733,2]
[364206926,1749041444598,-529.09,0.00019733,2]
[364206928,1749041444608,-401.08642686,0.00019914,2]
[364206930,1749041444618,-4401.51327333,0.00019934,2]
[364206932,1749041444628,-151.0,0.0002,2]
[364206934,1749041444637,-300.39179917,0.0002,2]
[364206936,1749041444648,-440.0,0.0002,2]